bitfinex-derivatives/quotes_ETHF0:USTF0_20260118
["timestamp","ask_amount","ask_price","bid_price","bid_amount"]
[1768721096220,1.05839721,3312.6,3311.3,0.97318558]
[1768721096422,1.24193998,3312.7,3311.3,0.97318558]
[1768721096620,1.05839643,3312.6,3311.3,0.97318558]
[1768721096820,1.24193998,3312.7,3311.3,0.97318558]
[1768721097021,1.05839643,3312.6,3311.3,0.97318558]
[1768721097228,1.24193998,3312.7,3311.2,0.97318558]
[1768721097526,0.97318558,3312.1,3310.8,1.12425558]
[1768721098320,0.97318558,3312.2,3310.8,1.12425558]
[1768721102827,0.254224,3312.4,3310.8,1.12425558]
[1768721103028,1.22740958,3312.4,3311.0,0.97318558]
[1768721103218,0.97318558,3312.6,3311.2,0.97318558]
[1768721113639,0.254224,3312.8,3311.2,0.97318558]
[1768721113839,0.97318558,3312.6,3311.2,0.97318558]
[1768721119049,0.254224,3312.8,3311.2,0.97318558]
[1768721119350,0.97318558,3312.6,3311.2,0.97318558]
[1768721129364,0.254224,3312.8,3310.9,0.26627735]
[1768721129556,1.40307825,3312.7,3310.9,0.26627735]
[1768721129757,1.06092728,3312.6,3310.9,0.26627735]
[1768721129956,0.254224,3312.8,3310.9,0.26627735]
[1768721130154,1.40307929,3312.7,3310.9,0.26627735]
[1768721130355,1.06092807,3312.6,3310.9,0.26627735]
[1768721130566,0.254224,3312.8,3310.9,0.26627735]
[1768721130861,1.40307972,3312.7,3310.9,0.26627735]
[1768721131048,1.0609284,3312.6,3310.9,0.26627735]
[1768721131251,0.254224,3312.8,3311.0,0.26598031]
[1768721131452,1.06096044,3312.7,3311.0,0.26598031]
[1768721131652,1.06096044,3312.6,3311.0,0.26598031]
[1768721131857,0.254224,3312.8,3311.0,0.26598031]
[1768721132071,1.06095778,3312.7,3311.0,0.26598031]
[1768721132254,1.06097165,3312.6,3311.0,0.26598031]
[1768721132453,0.254224,3312.8,3311.0,0.26598031]
[1768721132668,1.0608642,3312.7,3311.0,0.26598031]
[1768721132857,1.0608642,3312.6,3311.0,0.26598031]
[1768721133060,0.254224,3312.8,3311.0,0.26598031]
[1768721133255,1.0608642,3312.7,3311.0,0.26598031]
[1768721133565,1.0608642,3312.6,3311.0,0.26598031]
[1768721133768,0.254224,3312.8,3311.0,0.26598031]
[1768721133967,1.06081755,3312.7,3311.0,0.26598031]
[1768721134264,1.06081755,3312.6,3311.0,0.26598031]
[1768721134451,0.254224,3312.8,3311.0,0.26598031]
[1768721134658,1.06078031,3312.7,3311.0,0.26598031]
[1768721134859,1.06078031,3312.6,3311.0,0.26598031]
[1768721135059,0.254224,3312.8,3311.0,0.26598031]
[1768721135358,1.0607803,3312.7,3311.0,0.26598031]
[1768721135661,0.254224,3312.8,3311.0,0.26598031]
[1768721135859,1.06075086,3312.7,3311.0,0.26598031]
[1768721136061,0.254224,3312.8,3311.0,0.26598031]
[1768721136262,1.06075123,3312.7,3311.0,0.26598031]
[1768721136461,0.254224,3312.8,3311.0,0.26598031]
[1768721136759,1.06072682,3312.7,3311.0,0.26598031]
[1768721136959,0.254224,3312.8,3311.0,0.26598031]
[1768721137260,1.06072682,3312.7,3311.0,0.26598031]
[1768721137459,0.254224,3312.8,3311.0,0.26598031]
[1768721137663,1.06070651,3312.7,3311.0,0.26598031]
[1768721137863,0.254224,3312.8,3311.0,0.26598031]
[1768721138067,1.06070645,3312.7,3311.0,0.26598031]
[1768721138268,0.254224,3312.8,3311.0,0.26598031]
[1768721138466,1.06068941,3312.7,3311.0,0.26598031]
[1768721138665,0.254224,3312.8,3311.0,0.26598031]
[1768721138861,1.06068946,3312.7,3311.0,0.26598031]
[1768721139062,0.254224,3312.8,3311.0,0.26598031]
[1768721139262,1.06068946,3312.7,3311.0,0.26598031]
[1768721139467,0.254224,3312.8,3311.0,0.26598031]
[1768721139768,1.06067524,3312.7,3311.0,0.26598031]
[1768721140066,0.254224,3312.8,3311.0,0.26598031]
[1768721140266,1.06067524,3312.7,3311.0,0.26598031]
[1768721140468,0.254224,3312.8,3311.0,0.26598031]
[1768721140765,1.0606643,3312.7,3311.0,0.26598031]
[1768721140966,0.254224,3312.8,3311.0,0.26598031]
[1768721141172,1.06066815,3312.7,3311.0,0.26598031]
[1768721141468,0.254224,3312.8,3311.0,0.26598031]
[1768721141657,1.06065749,3312.7,3311.0,0.26598031]
[1768721141855,0.254224,3312.8,3311.0,0.26598031]
[1768721142054,1.0606574,3312.7,3311.0,0.26598031]
[1768721142266,0.254224,3312.8,3311.0,0.26598031]
[1768721142571,1.06064899,3312.7,3311.0,0.26598031]
[1768721142761,0.254224,3312.8,3311.0,0.26598031]
[1768721142961,1.06064916,3312.7,3311.0,0.26598031]
[1768721143167,0.254224,3312.8,3311.0,0.26598031]
[1768721143368,1.06064266,3312.7,3311.0,0.26598031]
[1768721143567,0.254224,3312.8,3311.0,0.26598031]
[1768721143769,1.06064266,3312.7,3311.0,0.26598031]
[1768721143970,0.254224,3312.8,3311.0,0.26598031]
[1768721144269,1.0606426,3312.7,3311.0,0.26598031]
[1768721144469,0.254224,3312.8,3311.0,0.26598031]
[1768721144769,1.06063792,3312.7,3311.0,0.26598031]
[1768721144967,0.254224,3312.8,3311.0,0.26598031]
[1768721145168,1.06063635,3312.7,3311.0,0.26598031]
[1768721145370,0.254224,3312.8,3311.0,0.26598031]
[1768721145569,1.06063475,3312.7,3311.0,0.26598031]
[1768721145770,0.254224,3312.8,3311.0,0.26598031]
[1768721146070,1.0606347,3312.7,3311.0,0.26598031]
[1768721146273,0.254224,3312.8,3311.0,0.26598031]
[1768721146473,1.06063475,3312.7,3311.0,0.26598031]
[1768721146772,0.254224,3312.8,3311.0,0.26598031]
[1768721146969,1.0606347,3312.7,3311.0,0.26598031]
[1768721147269,0.254224,3312.8,3311.0,0.26598031]
[1768721147471,1.06063628,3312.7,3311.0,0.26598031]
[1768721147673,0.254224,3312.8,3311.0,0.26598031]
[1768721147873,1.06063602,3312.7,3311.0,0.26598031]
[1768721148086,0.254224,3312.8,3311.0,0.26598031]
[1768721148269,1.06063605,3312.7,3311.0,0.26598031]
[1768721148469,0.254224,3312.8,3311.0,0.26598031]
[1768721148672,1.0606393,3312.7,3311.0,0.26598031]
[1768721148871,0.254224,3312.8,3311.0,0.26598031]
[1768721149079,1.0606393,3312.7,3311.0,0.26598031]
[1768721149281,0.254224,3312.8,3311.0,0.26598031]
[1768721149578,1.06064394,3312.7,3311.0,0.26598031]
[1768721149779,0.254224,3312.8,3311.0,0.26598031]
[1768721149982,1.060644,3312.7,3311.0,0.26598031]
[1768721150179,0.254224,3312.8,3311.0,0.26598031]
[1768721150382,1.06065031,3312.7,3311.0,0.26598031]
[1768721150593,0.254224,3312.8,3311.0,0.26598031]
[1768721150880,1.06065031,3312.7,3311.0,0.26598031]
[1768721151081,0.254224,3312.8,3311.0,0.26598031]
[1768721151377,1.06065031,3312.7,3311.0,0.26598031]
[1768721151578,0.254224,3312.8,3311.0,0.26598031]
[1768721151772,1.06065847,3312.7,3311.0,0.26598031]
[1768721151973,0.254224,3312.8,3311.0,0.26598031]
[1768721152173,1.06073323,3312.7,3311.0,0.26598031]
[1768721152374,0.254224,3312.8,3311.0,0.26598031]
[1768721152573,1.0607434,3312.7,3311.0,0.26598031]
[1768721152780,0.254224,3312.8,3311.0,0.26598031]
[1768721152980,1.06074708,3312.7,3311.0,0.26598031]
[1768721153176,0.254224,3312.8,3311.0,0.26598031]
[1768721153381,1.06075864,3312.7,3311.0,0.26598031]
[1768721153676,0.254224,3312.8,3311.0,0.26598031]
[1768721153876,1.06075864,3312.7,3311.0,0.26598031]
[1768721154082,0.254224,3312.8,3311.0,0.26598031]
[1768721154282,1.06075864,3312.7,3311.0,0.26598031]
[1768721154583,0.254224,3312.8,3311.0,0.26598031]
[1768721154783,1.06077315,3312.7,3311.0,0.26598031]
[1768721155080,0.254224,3312.8,3311.0,0.26598031]
[1768721155283,1.06077293,3312.7,3311.0,0.26598031]
[1768721155580,0.254224,3312.8,3311.0,0.26598031]
[1768721155771,1.06079027,3312.7,3311.0,0.26598031]
[1768721155973,0.254224,3312.8,3311.0,0.26598031]
[1768721156173,1.06079027,3312.7,3311.0,0.26598031]
[1768721156374,0.254224,3312.8,3311.0,0.26598031]
[1768721156574,1.06081084,3312.7,3311.0,0.26598031]
[1768721156773,0.254224,3312.8,3311.0,0.26598031]
[1768721156974,1.06081004,3312.7,3311.0,0.26598031]
[1768721157174,0.254224,3312.8,3311.0,0.26598031]
[1768721157384,1.06083471,3312.7,3311.0,0.26598031]
[1768721157579,0.254224,3312.8,3311.0,0.26598031]
[1768721157778,1.06083471,3312.7,3311.0,0.26598031]
[1768721157977,0.254224,3312.8,3311.0,0.26598031]
[1768721158177,1.06083471,3312.7,3311.0,0.26598031]
[1768721158383,0.254224,3312.8,3311.0,0.26598031]
[1768721158570,1.06086482,3312.7,3311.0,0.26598031]
[1768721158774,0.254224,3312.8,3311.0,0.26598031]
[1768721158981,1.06086497,3312.7,3311.0,0.26598031]
[1768721159175,0.254224,3312.8,3311.0,0.26598031]
[1768721159375,1.06090047,3312.7,3311.0,0.26598031]
[1768721159579,0.254224,3312.8,3311.0,0.26598031]
[1768721159781,1.06090341,3312.7,3311.0,0.26598031]
[1768721159980,0.254224,3312.8,3311.0,0.26598031]
[1768721160185,1.06090341,3312.7,3311.0,0.26598031]
[1768721160389,0.254224,3312.8,3311.0,0.26598031]
[1768721160585,1.06095307,3312.7,3311.0,0.26598031]
[1768721160885,0.254224,3312.8,3311.0,0.26598031]
[1768721161079,1.06095301,3312.7,3311.0,0.26598031]
[1768721161279,0.254224,3312.8,3311.0,0.26598031]
[1768721161481,1.06105585,3312.7,3311.0,0.26598031]
[1768721161690,0.254224,3312.8,3311.0,0.26598031]
[1768721161883,1.06105585,3312.7,3311.0,0.26598031]
[1768721162083,0.254224,3312.8,3311.0,0.26598031]
[1768721162287,1.06105597,3312.7,3311.0,0.26598031]
[1768721162495,0.254224,3312.8,3311.0,0.26598031]
[1768721162693,1.06105771,3312.7,3311.0,0.26598031]
[1768721162896,0.254224,3312.8,3311.0,0.26598031]
[1768721163088,1.06105857,3312.7,3311.0,0.26598031]
[1768721163286,0.254224,3312.8,3311.0,0.26598031]
[1768721163488,1.06105828,3312.7,3311.0,0.26598031]
[1768721163690,0.254224,3312.8,3311.0,0.26598031]
[1768721163986,1.06105822,3312.7,3311.0,0.26598031]
[1768721164188,0.254224,3312.8,3311.0,0.26598031]
[1768721164385,1.06105777,3312.7,3311.0,0.26598031]
[1768721164593,0.254224,3312.8,3311.0,0.26598031]
[1768721164794,1.06105772,3312.7,3311.0,0.26598031]
[1768721164994,0.254224,3312.8,3311.0,0.26598031]
[1768721165197,1.06105853,3312.7,3311.0,0.26598031]
[1768721165396,0.254224,3312.8,3311.0,0.26598031]
[1768721165599,1.06105574,3312.7,3311.0,0.26598031]
[1768721165786,0.254224,3312.8,3311.0,0.26598031]
[1768721166094,1.06105574,3312.7,3311.0,0.26598031]
[1768721166298,0.254224,3312.8,3311.0,0.26598031]
[1768721166592,1.06105548,3312.7,3311.0,0.26598031]
[1768721166793,0.254224,3312.8,3311.0,0.26598031]
[1768721166992,1.06105548,3312.7,3311.0,0.26598031]
[1768721167195,0.254224,3312.8,3311.0,0.26598031]
[1768721167385,1.06105533,3312.7,3311.0,0.26598031]
[1768721167588,0.254224,3312.8,3311.0,0.26598031]
[1768721167792,1.06105533,3312.7,3311.0,0.26598031]
[1768721167994,0.254224,3312.8,3311.0,0.26598031]
[1768721168194,1.06105529,3312.7,3311.0,0.26598031]
[1768721168395,0.254224,3312.8,3311.0,0.26598031]
[1768721168695,1.06105522,3312.7,3311.0,0.26598031]
[1768721168896,0.254224,3312.8,3311.0,0.26598031]
[1768721169098,1.0610572,3312.7,3311.0,0.26598031]
[1768721169388,0.254224,3312.8,3311.0,0.26598031]
[1768721169590,1.06105712,3312.7,3311.0,0.26598031]
[1768721169884,0.254224,3312.8,3311.0,0.26598031]
[1768721170088,1.06105711,3312.7,3311.0,0.26598031]
[1768721170285,0.254224,3312.8,3311.0,0.26598031]
[1768721170497,1.06105859,3312.7,3311.0,0.26598031]
[1768721170706,0.254224,3312.8,3311.0,0.26598031]
[1768721170890,1.0610585,3312.7,3311.0,0.26598031]
[1768721171091,0.254224,3312.8,3311.0,0.26598031]
[1768721171292,1.06105884,3312.7,3311.0,0.26598031]
[1768721171591,0.254224,3312.8,3311.0,0.26598031]
[1768721171793,1.06105796,3312.7,3311.0,0.26598031]
[1768721172090,0.254224,3312.8,3311.0,0.26598031]
[1768721172404,1.06105833,3312.7,3311.0,0.26598031]
[1768721172604,0.254224,3312.8,3311.0,0.26598031]
[1768721172806,1.06105975,3312.7,3311.0,0.26598031]
[1768721173107,0.254224,3312.8,3311.0,0.26598031]
[1768721173302,1.06106099,3312.7,3311.0,0.26598031]
[1768721173503,0.254224,3312.8,3311.0,0.26598031]
[1768721173704,1.06106292,3312.7,3311.0,0.26598031]
[1768721173894,0.254224,3312.8,3311.0,0.26598031]
[1768721174095,1.06106196,3312.7,3311.0,0.26598031]
[1768721174306,0.254224,3312.8,3311.0,0.26598031]
[1768721174604,1.06106491,3312.7,3311.0,0.26598031]
[1768721174807,0.254224,3312.8,3311.0,0.26598031]
[1768721174999,1.06106491,3312.7,3311.0,0.26598031]
[1768721175197,0.254224,3312.8,3311.0,0.26598031]
[1768721175398,1.06106493,3312.7,3311.0,0.26598031]
[1768721175602,0.254224,3312.8,3311.0,0.26598031]
[1768721175799,1.06106713,3312.7,3311.0,0.26598031]
[1768721175994,0.254224,3312.8,3311.0,0.26598031]
[1768721176195,1.06106371,3312.7,3311.0,0.26598031]
[1768721176497,0.254224,3312.8,3311.0,0.26598031]
[1768721176696,1.06105533,3312.7,3311.0,0.26598031]
[1768721176906,0.254224,3312.8,3311.0,0.26598031]
[1768721177107,1.06105629,3312.7,3311.0,0.26598031]
[1768721177307,0.254224,3312.8,3311.0,0.26598031]
[1768721177609,1.06104651,3312.7,3311.0,0.26598031]
[1768721177793,0.254224,3312.8,3311.0,0.26598031]
[1768721177993,1.06104533,3312.7,3311.0,0.26598031]
[1768721178195,0.254224,3312.8,3311.0,0.26598031]
[1768721178496,1.06104344,3312.7,3311.0,0.26598031]
[1768721178694,0.254224,3312.8,3311.0,0.26598031]
[1768721178893,1.06104344,3312.7,3311.0,0.26598031]
[1768721179099,0.254224,3312.8,3311.0,0.26598031]
[1768721179396,1.06104223,3312.7,3311.0,0.26598031]
[1768721179592,0.254224,3312.8,3311.0,0.26598031]
[1768721179892,1.06104177,3312.7,3311.0,0.26598031]
[1768721180095,0.254224,3312.8,3311.0,0.26598031]
[1768721180310,1.06104079,3312.7,3311.0,0.26598031]
[1768721180503,0.254224,3312.8,3311.0,0.26598031]
[1768721180703,0.25007262,3312.6,3311.0,0.26598031]
[1768721191309,1.2233042,3312.6,3311.3,0.97323158]
[1768721226841,0.25007262,3312.6,3311.3,0.97323158]
[1768721227040,1.2233042,3312.6,3311.3,0.97323158]
[1768721231554,0.25007262,3312.6,3311.3,0.97323158]
[1768721231853,1.2233042,3312.6,3311.3,0.97323158]
[1768721241765,0.25007262,3312.6,3311.3,0.97323158]
[1768721241964,1.2233042,3312.6,3311.3,0.97323158]
[1768721248671,1.2233042,3312.6,3311.2,0.97323158]
[1768721251271,0.25007262,3312.6,3311.0,0.26598031]
[1768721287404,0.25007262,3312.6,3310.6,0.26308869]
[1768721287603,0.24707523,3312.4,3310.7,1.679]
[1768721288905,0.24707523,3312.4,3310.7,1.94208869]
[1768721292709,0.24707523,3312.4,3310.8,0.26308869]
[1768721311330,1.2204917,3312.4,3311.0,0.97341647]
[1768721311634,1.2204917,3312.4,3311.0,1.2307797]
[1768721311822,0.97341647,3312.6,3311.2,1.2307797]
[1768721312021,1.06472216,3312.5,3311.2,1.2307797]
[1768721312222,0.97341647,3312.6,3311.2,1.2307797]
[1768721312517,1.06480369,3312.5,3311.2,1.2307797]
[1768721312714,0.26856534,3312.9,3311.3,0.25736323]
[1768721312921,0.97341647,3312.7,3311.5,0.97341647]
[1768721313120,1.40660148,3312.6,3311.5,0.00345225]
[1768721313414,1.06480525,3312.5,3311.5,0.00345225]
[1768721313619,0.97341647,3312.7,3311.5,0.00345225]
[1768721313824,1.40672815,3312.6,3311.5,0.00345225]
[1768721314129,1.06490194,3312.5,3311.5,0.00345225]
[1768721314327,0.97341647,3312.7,3311.5,0.00345225]
[1768721314626,1.06501579,3312.6,3311.5,0.00345225]
[1768721314931,0.97341647,3312.7,3311.5,0.00345225]
[1768721315125,1.06506799,3312.6,3311.5,0.00345225]
[1768721315424,0.97341647,3312.7,3311.5,0.00345225]
[1768721315625,1.06489481,3312.6,3311.5,0.00345225]
[1768721315818,0.97341647,3312.7,3311.5,0.00345225]
[1768721316023,1.0648934,3312.6,3311.5,0.00345225]
[1768721316329,0.97341647,3312.7,3311.5,0.00345225]
[1768721316522,1.06501687,3312.6,3311.5,0.00345225]
[1768721316722,0.97341647,3312.7,3311.5,0.00345225]
[1768721316924,1.06501688,3312.6,3311.5,0.00345225]
[1768721317226,0.97341647,3312.7,3311.5,0.00345225]
[1768721317423,1.06518115,3312.6,3311.5,0.00345225]
[1768721317624,0.97341647,3312.7,3311.5,0.00345225]
[1768721319133,0.26856534,3312.9,3311.5,0.97686872]
[1768721319322,1.06498622,3312.8,3311.7,0.97341647]
[1768721319633,0.26856534,3312.9,3311.7,0.97341647]
[1768721319932,1.06503104,3312.8,3311.7,0.97341647]
[1768721320231,0.26856534,3312.9,3311.7,0.97341647]
[1768721320430,1.06483481,3312.8,3311.7,0.97341647]
[1768721320641,0.26856534,3312.9,3311.5,0.00345225]
[1768721320830,1.06483366,3312.8,3311.6,0.97341647]
[1768721321129,0.26856534,3312.9,3311.6,0.97341647]
[1768721321331,0.00254003,3312.9,3311.6,0.97341647]
[1768721324133,0.9759565,3312.9,3311.6,0.97341647]
[1768721328037,0.9759565,3312.9,3311.5,0.00345225]
[1768721328338,0.97341647,3312.7,3311.5,0.00345225]
[1768721329544,0.00254003,3312.9,3311.5,0.00345225]
[1768721329836,0.97341647,3312.6,3311.5,0.00345225]
[1768721350158,0.00254003,3312.9,3311.5,0.00345225]
[1768721350458,0.97341647,3312.7,3311.5,0.00345225]
[1768721357262,0.97341647,3312.8,3311.5,0.97686872]
[1768721373260,0.25029303,3312.9,3311.5,0.00345225]
[1768721373465,1.40561124,3312.8,3311.5,0.00345225]
[1768721373761,0.25029303,3312.9,3311.5,0.00345225]
[1768721373962,1.40561352,3312.8,3311.5,0.00345225]
[1768721374161,0.25029303,3312.9,3311.5,0.00345225]
[1768721374370,1.06341139,3312.8,3311.5,0.00345225]
[1768721374570,0.25029303,3312.9,3311.5,0.00345225]
[1768721374869,1.06341035,3312.8,3311.5,0.00345225]
[1768721375071,0.25029303,3312.9,3311.5,0.00345225]
[1768721375264,1.40561651,3312.8,3311.5,0.00345225]
[1768721375564,0.25029303,3312.9,3311.5,0.00345225]
[1768721375762,1.40561775,3312.8,3311.5,0.00345225]
[1768721375966,0.25029303,3312.9,3311.5,0.00345225]
[1768721376164,1.40561719,3312.8,3311.5,0.00345225]
[1768721376373,0.25029303,3312.9,3311.5,0.00345225]
[1768721376570,1.40561933,3312.8,3311.5,0.00345225]
[1768721376771,0.25029303,3312.9,3311.5,0.00345225]
[1768721376972,1.40561996,3312.8,3311.5,0.00345225]
[1768721377165,0.25029303,3312.9,3311.5,0.00345225]
[1768721377462,1.40562402,3312.8,3311.5,0.00345225]
[1768721377663,0.00254003,3312.9,3311.5,0.21981229]
[1768721377872,1.06341881,3312.8,3311.5,0.21981229]
[1768721378073,0.00254003,3312.9,3311.5,0.21981229]
[1768721378272,1.06342041,3312.8,3311.5,0.21981229]
[1768721378464,0.00254003,3312.9,3311.5,0.21981229]
[1768721378664,1.06342438,3312.8,3311.5,0.21981229]
[1768721378865,0.00254003,3312.9,3311.5,0.21981229]
[1768721379075,1.06342399,3312.8,3311.5,0.21981229]
[1768721379377,0.00254003,3312.9,3311.5,0.21981229]
[1768721379576,1.06342711,3312.8,3311.5,0.21981229]
[1768721379775,0.00254003,3312.9,3311.5,0.21981229]
[1768721379972,1.06342648,3312.8,3311.5,0.21981229]
[1768721380173,0.00254003,3312.9,3311.5,0.21981229]
[1768721380374,1.06343037,3312.8,3311.5,0.21981229]
[1768721380572,0.00254003,3312.9,3311.5,0.21981229]
[1768721380778,1.06343037,3312.8,3311.5,0.21981229]
[1768721380978,0.00254003,3312.9,3311.5,0.21981229]
[1768721381276,1.0634303,3312.8,3311.5,0.21981229]
[1768721381471,0.00254003,3312.9,3311.5,0.21981229]
[1768721381671,1.06343319,3312.8,3311.5,0.21981229]
[1768721381871,0.00254003,3312.9,3311.5,0.21981229]
[1768721382080,1.06343347,3312.8,3311.5,0.21981229]
[1768721382376,0.00254003,3312.9,3311.5,0.21981229]
[1768721382577,1.06344044,3312.8,3311.5,0.21981229]
[1768721382780,0.00254003,3312.9,3311.5,0.21981229]
[1768721383079,1.06344125,3312.8,3311.5,0.21981229]
[1768721383280,0.00254003,3312.9,3311.5,0.21981229]
[1768721383475,1.0634444,3312.8,3311.5,0.21981229]
[1768721383676,0.00254003,3312.9,3311.5,0.21981229]
[1768721383878,1.06344435,3312.8,3311.5,0.21981229]
[1768721384072,0.00254003,3312.9,3311.5,0.21981229]
[1768721384271,1.06344434,3312.8,3311.5,0.21981229]
[1768721384476,0.00254003,3312.9,3311.5,0.21981229]
[1768721384683,1.06355913,3312.8,3311.5,0.21981229]
[1768721384982,0.00254003,3312.9,3311.5,0.21981229]
[1768721385178,1.06358031,3312.8,3311.5,0.21981229]
[1768721385378,0.00254003,3312.9,3311.5,0.21981229]
[1768721385580,1.06368623,3312.8,3311.5,0.21981229]
[1768721385779,0.00254003,3312.9,3311.5,0.21981229]
[1768721386078,1.06369177,3312.8,3311.5,0.21981229]
[1768721386384,0.00254003,3312.9,3311.5,0.21981229]
[1768721386573,1.06370302,3312.8,3311.5,0.21981229]
[1768721386869,0.00254003,3312.9,3311.5,0.21981229]
[1768721387069,1.06371622,3312.8,3311.5,0.21981229]
[1768721387273,0.00254003,3312.9,3311.5,0.21981229]
[1768721387473,1.06372026,3312.8,3311.5,0.21981229]
[1768721387673,0.00254003,3312.9,3311.5,0.21981229]
[1768721387878,1.06371974,3312.8,3311.5,0.21981229]
[1768721388078,0.00254003,3312.9,3311.5,0.21981229]
[1768721388284,1.06371986,3312.8,3311.5,0.21981229]
[1768721388482,0.00254003,3312.9,3311.5,0.21981229]
[1768721388676,1.0637846,3312.8,3311.5,0.21981229]
[1768721388876,0.00254003,3312.9,3311.5,0.21981229]
[1768721389072,1.0637847,3312.8,3311.5,0.21981229]
[1768721389274,0.00254003,3312.9,3311.5,0.21981229]
[1768721389474,1.0637859,3312.8,3311.5,0.21981229]
[1768721389675,0.00254003,3312.9,3311.5,0.21981229]
[1768721389877,1.06378708,3312.8,3311.5,0.21981229]
[1768721390175,0.00254003,3312.9,3311.5,0.21981229]
[1768721390376,1.06378864,3312.8,3311.5,0.21981229]
[1768721390573,0.00254003,3312.9,3311.5,0.21981229]
[1768721390777,1.06378864,3312.8,3311.5,0.21981229]
[1768721390981,0.00254003,3312.9,3311.5,0.21981229]
[1768721391275,1.06378835,3312.8,3311.5,0.21981229]
[1768721391477,0.00254003,3312.9,3311.5,0.21981229]
[1768721391773,1.06378944,3312.8,3311.5,0.21981229]
[1768721391978,0.00254003,3312.9,3311.5,0.21981229]
[1768721392173,1.06378944,3312.8,3311.5,0.21981229]
[1768721392378,0.00254003,3312.9,3311.5,0.21981229]
[1768721392589,1.06284033,3312.8,3311.5,0.21981229]
[1768721392888,0.00254003,3312.9,3311.5,0.21981229]
[1768721393190,1.06283873,3312.8,3311.5,0.21981229]
[1768721393394,0.00254003,3312.9,3311.5,0.21981229]
[1768721393696,1.0628389,3312.8,3311.5,0.21981229]
[1768721393899,0.00254003,3312.9,3311.5,0.21981229]
[1768721394082,1.0628389,3312.8,3311.5,0.21981229]
[1768721394286,0.00254003,3312.9,3311.5,0.21981229]
[1768721394497,1.06283942,3312.8,3311.5,0.21981229]
[1768721394796,0.00254003,3312.9,3311.5,0.21981229]
[1768721395000,1.06284087,3312.8,3311.5,0.21981229]
[1768721395200,0.00254003,3312.9,3311.5,0.21981229]
[1768721395494,1.06284141,3312.8,3311.5,0.21981229]
[1768721395700,0.00254003,3312.9,3311.5,0.21981229]
[1768721395890,1.06284135,3312.8,3311.5,0.21981229]
[1768721396090,0.00254003,3312.9,3311.5,0.21981229]
[1768721396294,1.06284264,3312.8,3311.5,0.21981229]
[1768721396591,0.00254003,3312.9,3311.5,0.21981229]
[1768721396891,1.0628427,3312.8,3311.5,0.21981229]
[1768721397084,0.00254003,3312.9,3311.5,0.21981229]
[1768721397288,1.0628414,3312.8,3311.5,0.21981229]
[1768721397488,0.00254003,3312.9,3311.5,0.21981229]
[1768721397689,1.06282668,3312.8,3311.5,0.21981229]
[1768721397984,0.00254003,3312.9,3311.5,0.21981229]
[1768721398184,1.06282557,3312.8,3311.5,0.21981229]
[1768721398384,0.00254003,3312.9,3311.5,0.21981229]
[1768721398585,1.06282728,3312.8,3311.5,0.21981229]
[1768721398795,0.00254003,3312.9,3311.5,0.21981229]
[1768721399099,1.06282722,3312.8,3311.5,0.21981229]
[1768721399298,0.00254003,3312.9,3311.5,0.21981229]
[1768721399491,1.06282907,3312.8,3311.5,0.21981229]
[1768721399791,0.00254003,3312.9,3311.5,0.21981229]
[1768721399991,1.0628299,3312.8,3311.5,0.21981229]
[1768721400191,0.00254003,3312.9,3311.5,0.21981229]
[1768721400391,1.06282954,3312.8,3311.5,0.21981229]
[1768721400587,0.00254003,3312.9,3311.5,0.21981229]
[1768721400792,1.06282987,3312.8,3311.5,0.21981229]
[1768721400997,0.00254003,3312.9,3311.5,0.21981229]
[1768721401301,1.06282974,3312.8,3311.5,0.21981229]
[1768721401498,0.00254003,3312.9,3311.5,0.21981229]
[1768721401799,1.06282963,3312.8,3311.5,0.21981229]
[1768721402000,0.00254003,3312.9,3311.5,0.21981229]
[1768721402204,1.0628285,3312.8,3311.5,0.21981229]
[1768721402394,0.00254003,3312.9,3311.5,0.21981229]
[1768721409497,0.973195,3312.8,3311.5,0.21981229]
[1768721409795,1.19650486,3312.8,3311.5,0.00345225]
[1768721410111,1.0626061,3312.7,3311.5,0.00345225]
[1768721410305,1.19650486,3312.8,3311.5,0.00345225]
[1768721410508,1.06254157,3312.7,3311.5,0.00345225]
[1768721410802,1.19650486,3312.8,3311.5,0.00345225]
[1768721411107,1.61757586,3312.7,3311.5,0.00345225]
[1768721411300,1.06253873,3312.6,3311.5,0.00345225]
[1768721411503,0.22330986,3312.7,3311.5,0.00345225]
[1768721411699,1.06222384,3312.6,3311.5,0.00345225]
[1768721411902,0.22330986,3312.7,3311.5,0.00345225]
[1768721412203,1.06222395,3312.6,3311.5,0.00345225]
[1768721412404,0.22330986,3312.7,3311.5,0.00345225]
[1768721412606,1.06203543,3312.6,3311.5,0.00345225]
[1768721412799,0.22330986,3312.7,3311.5,0.00345225]
[1768721412998,1.06203551,3312.6,3311.5,0.00345225]
[1768721413200,0.22330986,3312.7,3311.5,0.00345225]
[1768721413410,1.06189011,3312.6,3311.5,0.00345225]
[1768721413596,0.22330986,3312.7,3311.5,0.00345225]
[1768721413799,1.0618901,3312.6,3311.5,0.00345225]
[1768721413997,0.22330986,3312.7,3311.5,0.00345225]
[1768721414200,1.06188993,3312.6,3311.5,0.00345225]
[1768721414414,0.22330986,3312.7,3311.5,0.00345225]
[1768721414613,1.06177175,3312.6,3311.5,0.00345225]
[1768721414814,0.22330986,3312.7,3311.5,0.00345225]
[1768721415004,1.06177175,3312.6,3311.5,0.00345225]
[1768721415309,0.22330986,3312.7,3311.5,0.00345225]
[1768721415616,1.06167302,3312.6,3311.5,0.00345225]
[1768721415812,0.22330986,3312.7,3311.5,0.00345225]
[1768721416016,1.06167302,3312.6,3311.5,0.00345225]
[1768721416317,0.22330986,3312.7,3311.5,0.00345225]
[1768721416512,1.06158806,3312.6,3311.5,0.00345225]
[1768721416807,0.22330986,3312.7,3311.5,0.00345225]
[1768721417011,1.06158799,3312.6,3311.5,0.00345225]
[1768721417215,0.22330986,3312.7,3311.5,0.00345225]
[1768721417405,1.06151523,3312.6,3311.5,0.00345225]
[1768721417606,0.22330986,3312.7,3311.5,0.00345225]
[1768721417811,1.06151525,3312.6,3311.5,0.00345225]
[1768721418112,0.22330986,3312.7,3311.5,0.00345225]
[1768721418416,1.06145249,3312.6,3311.5,0.00345225]
[1768721418617,0.22330986,3312.7,3311.5,0.00345225]
[1768721418912,1.06145244,3312.6,3311.5,0.00345225]
[1768721419107,0.22330986,3312.7,3311.5,0.00345225]
[1768721419314,1.06139939,3312.6,3311.5,0.00345225]
[1768721419518,0.22330986,3312.7,3311.5,0.00345225]
[1768721419703,1.06139939,3312.6,3311.5,0.00345225]
[1768721419908,0.22330986,3312.7,3311.5,0.00345225]
[1768721420112,1.06139948,3312.6,3311.5,0.00345225]
[1768721420315,0.22330986,3312.7,3311.5,0.00345225]
[1768721420511,1.06135526,3312.6,3311.5,0.00345225]
[1768721420712,0.22330986,3312.7,3311.5,0.00345225]
[1768721420910,1.06135856,3312.6,3311.5,0.00345225]
[1768721421113,0.22330986,3312.7,3311.5,0.00345225]
[1768721421313,1.06132141,3312.6,3311.5,0.00345225]
[1768721421513,0.22330986,3312.7,3311.5,0.00345225]
[1768721421717,1.06132141,3312.6,3311.5,0.00345225]